[Event "13th KIIT Festival-A 2022"]
[Site "Bhubaneswar"]
[Date "2022.05.24"]
[Round "4.15"]
[White "Adireddy Arjun"]
[Black "Sidhant, Mohapatra"]
[Result "1/2-1/2"]
[ECO "B90"]
[WhiteElo "1898"]
[BlackElo "2327"]
[Annotator "TA"]
[PlyCount "81"]
[EventDate "2022.05.15"]
[EventType "swiss"]
[EventCountry "IND"]
[SourceTitle "playchess.com"]
[Source "ChessBase"]
[SourceQuality "1"]
[TimeControl "5400+30"]

{[%evp 16,81,20,0,20,20,16,14,40,0,41,48,43,44,83,4,56,21,24,26,90,89,47,68,110,106,115,126,153,153,140,112,121,101,118,76,161,170,156,157,148,174,149,109,115,108,149,147,143,143,153,89,90,74,77,41,135,56,56,66,127,118,127,127,137,137,229,226]} 1. e4 {[%emt 1:31:00]} c5 {[%emt 1:31:00]} 2. Nf3 {[%emt 0:00:30]} d6 {[%emt 0:00:30]} 3. d4 {[%emt 0:00:30]} cxd4 {[%emt 0:00:30]} 4. Nxd4 {[%emt 0:00:30]} Nf6 {[%emt 0:00:30]} 5. Nc3 {[%emt 0:00:30]} a6 {[%emt 0:00:30]} 6. Be3 {[%emt 0:00:30]} e5 {[%emt 0:00:30]} 7. Nf3 {[%emt 0:00:30]} Qc7 {[%emt 0:00:30]} 8. a4 {[%emt 0:00:30]} Be7 {[%emt 0:00:30]} 9. a5 {[%emt 0:00:30] 9.a5 was played by the boomers.} Be6 {[%emt 0:00:30] B90: Sicilian Najdorf: Unusual White 6th moves, 6 Be3 Ng4 and 6 Be3 e5.} 10. Be2 {[%emt 0:00:30]} O-O {[%emt 0:00:30]} 11. O-O {[%emt 0:00:30]} Qc6 {[%emt 0:00:30] The position is equal.} 12. Ra4 {[%emt 0:00:30] [#]} Rc8 $146 {[%emt 0:00:30]} ({Predecessor:} 12... Nbd7 13. Ng5 d5 14. exd5 Nxd5 15. Nxe6 Nxc3 16. bxc3 Qxe6 17. Bf3 Nf6 18. Bxb7 Rad8 {½-½ (37) Smirin,I (2535)-Browne,W (2560) Philadelphia 1990}) 13. Ng5 {[%emt 0:00:30]} Qd7 {[%emt 0:00:30][%cal Oc8c3] aiming for ...Rxc3!} 14. Nxe6 {[%emt 0:00:30]} fxe6 {[%emt 0:00:30]} 15. Ra1 {[%emt 0:00:30]} (15. Qa1 $1 $16) 15... Qe8 {[%emt 0:00:30]} (15... Nc6 $11) 16. f4 {[%emt 0:00:30]} exf4 $1 {[%emt 0:00:30]} 17. Bxf4 {[%emt 0:00:30]} Rc6 {[%emt 0:00:30]} (17... Nbd7 $11 {keeps the balance.}) 18. e5 $16 {[%emt 0:00:30]} dxe5 {[%emt 0:00:30]} 19. Bxe5 {[%emt 0:00:30]} Nbd7 {[%emt 0:00:30]} 20. Bg3 {[%emt 0:00:30] A strong pair of Bishops.} e5 {[%emt 0:00:30]} 21. Bf3 {[%emt 0:00:30] Inhibits e4.} Rc7 {[%emt 0:00:30]} 22. Nd5 {[%emt 0:00:30]} Nxd5 {[%emt 0:00:30]} 23. Bxd5+ {[%emt 0:00:30]} Kh8 {[%emt 0:00:30]} 24. Qf3 {[%emt 0:00:30]} Rb8 {[%emt 0:00:30]} 25. c3 {[%emt 0:00:30]} Bf6 {[%emt 0:00:30]} (25... Nf6 $16 {keeps fighting.}) 26. Rae1 {[%emt 0:00:30]} b6 {[%emt 0:00:30]} 27. axb6 $1 {[%emt 0:00:30]} Rxb6 {[%emt 0:00:30]} 28. b4 {[%emt 0:00:30]} Rb8 {[%emt 0:00:30]} 29. Bc6 {[%emt 0:00:30]} Rbc8 {[%emt 0:00:30]} 30. Bxd7 {[%emt 0:00:30] 0x0.000842203b09dp-1022s more active pieces.} (30. Ba4 {feels hotter.} Qe6 31. Re3 Bg5 32. Re4) 30... Rxd7 {[%emt 0:00:30] [#]} 31. Bxe5 $1 {[%emt 0:00:30][%mdl 512]} Bxe5 {[%emt 0:00:30] [#]} 32. Rxe5 {[%emt 0:00:30][%mdl 512]} Qg8 {[%emt 0:00:30]} (32... Qxe5 $2 33. Qf8+ $3 {[%mdl 512]} Rxf8 34. Rxf8#) 33. Ra5 {[%emt 0:00:30]} (33. Rfe1 $142) 33... Rdc7 {[%emt 0:00:30]} 34. Rxa6 {[%emt 0:00:30]} Rxc3 {[%emt 0:00:30]} 35. Qf7 {[%emt 0:00:30]} Qd8 {[%emt 0:00:30]} ({Better is} 35... Rb3 $14) 36. Ra7 {[%emt 0:00:30]} (36. b5 $16) 36... Qd4+ $14 {[%emt 0:00:30]} 37. Kh1 {[%emt 0:00:30][%cal Of7f8] Threatening mate with Qf8+!} Rc1 {[%emt 0:00:30] [#]} (37... h6 $1 $14) 38. Rc7 $3 $36 {[%emt 0:00:30][%mdl 2560] White threatens Rxc8+ and mate. Keeping Black busy.} Rxf1+ {[%emt 0:00:30]} (38... R1xc7 $2 {[#] gets mated.} 39. Qf8+ $3 {[%mdl 512]} Rxf8 40. Rxf8#) 39. Qxf1 {[%emt 0:00:30]} Rd8 {[%emt 0:00:30][%cal Od4f4]} 40. b5 {[%emt 0:00:30]} Qb2 {[%emt 0:00:30]} (40... Qd6 $16 41. Rc1 h6) 41. Rc1 {[%emt 0:00:30] Weighted Error Value: White=0.17 (very precise) /Black=0.26 (precise)} 1/2-1/2

[Event "13th KIIT Festival-A 2022"]
[Site "Bhubaneswar"]
[Date "2022.05.24"]
[Round "4.16"]
[White "Bristy Mukherjee"]
[Black "Arpita, Mukherjee"]
[Result "1/2-1/2"]
[ECO "A45"]
[WhiteElo "1887"]
[BlackElo "2275"]
[Annotator "TA"]
[PlyCount "84"]
[EventDate "2022.05.15"]
[EventType "swiss"]
[EventCountry "IND"]
[SourceTitle "playchess.com"]
[Source "ChessBase"]
[SourceQuality "1"]
[TimeControl "5400+30"]

{[%evp 9,84,0,0,0,2,0,0,0,0,0,0,0,0,0,19,-10,19,0,15,15,26,14,26,14,31,31,37,12,53,37,44,30,35,27,35,39,52,32,82,33,35,21,26,26,31,25,28,20,39,39,39,39,39,39,39,39,46,46,46,13,13,14,18,31,15,0,0,4,7,0,0,0,0,0,0,0,6]} 1. d4 {[%emt 0:00:04]} Nf6 {[%emt 0:08:44]} 2. Bg5 {[%emt 0:00:24]} Ne4 {[%emt 0:02:47]} 3. h4 {[%emt 0:00:55]} d5 {[%emt 0:01:34]} 4. Nd2 {[%emt 0:02:08]} c5 {[%emt 0:01:34]} 5. Nxe4 {[%emt 0:10:33]} dxe4 {[%emt 0:00:07]} 6. dxc5 {[%emt 0:01:19] A45: Trompowsky Attack.} Qa5+ {[%emt 0:00:32]} 7. c3 {[%emt 0:13:37]} Qxc5 {[%emt 0:00:25]} 8. Qa4+ {[%emt 0:05:46]} Qc6 {[%emt 0:01:17]} 9. Qxc6+ {[%emt 0:01:07]} ({Much weaker is} 9. Qd4 f6 10. Be3 e5 $17) 9... Nxc6 {[%emt 0:00:08]} 10. f3 {[%emt 0:00:18] [#]} h6 $146 {[%emt 0:00:49]} ({Predecessor:} 10... Bf5 11. g4 Be6 12. Nh3 O-O-O 13. Be3 exf3 14. exf3 Bd5 15. Kf2 f6 16. Nf4 Bf7 {1-0 (73) Rogers,I (2582)-Maze,S (2462) Reykjavik 2004}) 11. Be3 {[%emt 0:01:27]} Bf5 {[%emt 0:07:42]} 12. g4 {[%emt 0:02:03]} Be6 {[%emt 0:03:53]} 13. Nh3 {[%emt 0:03:34][%cal Bg1h3,Bh3f2,Bf2e4,Be4g3][%mdl 32]} exf3 {[%emt 0:03:47]} 14. exf3 {[%emt 0:00:41]} Bd5 {[%emt 0:00:06]} 15. Be2 {[%emt 0:02:30] With the idea Nf4.} e5 {[%emt 0:00:11] Against Nf4} 16. Nf2 {[%emt 0:03:11]} O-O-O {[%emt 0:01:49]} 17. Ne4 {[%emt 0:06:37]} Be7 {[%emt 0:01:28]} 18. Ng3 {[%emt 0:04:37]} Rhe8 {[%emt 0:09:01]} 19. Kf2 {[%emt 0:01:48]} Bf8 {[%emt 0:05:34]} 20. Rhd1 {[%emt 0:02:27]} Be6 {[%emt 0:07:30]} 21. b3 {[%emt 0:02:24]} Be7 {[%emt 0:02:33]} 22. h5 {[%emt 0:01:06]} Bh4 {[%emt 0:01:52]} 23. Kg2 {[%emt 0:00:50]} Ne7 {[%emt 0:01:44]} ({Black should play} 23... Kc7 $14) 24. c4 {[%emt 0:02:39]} (24. Bxa7 $16 Kc7 25. Bc5) 24... Nc6 $14 {[%emt 0:03:43]} 25. Ne4 {[%emt 0:04:31] Threatens to win with Nd6+.} Be7 {[%emt 0:00:40] Prevents Nd6+.} 26. Nc5 {[%emt 0:07:35]} Bxc5 {[%emt 0:01:51]} 27. Bxc5 {[%emt 0:00:02]} b6 {[%emt 0:01:09]} 28. Bf2 {[%emt 0:02:20]} Rxd1 {[%emt 0:09:31]} 29. Rxd1 {[%emt 0:00:38]} Rd8 {[%emt 0:00:06]} 30. Rxd8+ {[%emt 0:04:31]} Kxd8 {[%emt 0:00:08][%mdl 4096] Endgame KBB-KBN} 31. Bd3 {[%emt 0:00:17]} Nb4 {[%emt 0:00:58]} 32. Bb1 {[%emt 0:00:21]} Kd7 {[%emt 0:23:17]} 33. Be3 {[%emt 0:03:11]} Kd6 {[%emt 0:00:00]} 34. g5 {[%emt 0:00:59]} hxg5 {[%emt 0:00:00]} 35. Bxg5 {[%emt 0:00:05][%cal Og5f6] Bf6! is the strong threat.} f6 {[%emt 0:00:00] [#]} 36. h6 $1 {[%emt 0:00:54]} gxh6 {[%emt 0:00:00]} (36... fxg5 $2 37. h7 $18) 37. Bxh6 {[%emt 0:00:35] Strongly threatening Bf8+. The position is equal.} Nc6 {[%emt 0:02:30]} 38. Bf8+ {[%emt 0:01:20]} Kd7 {[%emt 0:00:00]} 39. Kf2 {[%emt 0:00:30]} Nd4 {[%emt 0:00:00]} 40. Be4 {[%emt 0:03:31]} a5 {[%emt 0:00:00]} 41. c5 {[%emt 0:03:42]} bxc5 {[%emt 0:00:00]} 42. Bxc5 {[%emt 0:00:10]} Nb5 {[%emt 0:00:00] Weighted Error Value: White=0.07 (flawless) /Black=0.07 (flawless)} 1/2-1/2

[Event "13th KIIT Festival-A 2022"]
[Site "Bhubaneswar"]
[Date "2022.05.24"]
[Round "4.17"]
[White "Saravana, Krishnan P."]
[Black "Mahendra Teja Mekala"]
[Result "1-0"]
[ECO "B27"]
[WhiteElo "2269"]
[BlackElo "1871"]
[Annotator "TA"]
[PlyCount "79"]
[EventDate "2022.05.15"]
[EventType "swiss"]
[EventCountry "IND"]
[SourceTitle "playchess.com"]
[Source "ChessBase"]
[SourceQuality "1"]
[TimeControl "5400+30"]

{[%evp 9,79,16,17,3,16,14,41,28,25,25,62,41,52,52,101,105,91,95,107,114,103,60,47,59,88,73,77,82,143,141,151,144,156,136,183,179,242,227,233,152,139,147,159,144,142,95,79,82,103,106,107,106,99,100,82,95,94,98,102,95,91,100,91,68,117,89,100,91,647,644,599,554]} 1. e4 {[%emt 0:00:04]} c5 {[%emt 0:00:18]} 2. Nf3 {[%emt 0:00:13]} g6 {[%emt 0:00:18]} 3. Bc4 {[%emt 0:00:05]} Bg7 {[%emt 0:00:16]} 4. c3 {[%emt 0:00:24]} e6 {[%emt 0:03:00]} 5. d4 {[%emt 0:00:39]} cxd4 {[%emt 0:00:25]} 6. Nxd4 {[%emt 0:00:20] White wants to play Nb5. B27: Sicilian: 2 Nf3, unusual Black 2nd moves.} a6 {[%emt 0:00:56] Against Nb5} 7. O-O {[%emt 0:00:25]} Ne7 {[%emt 0:00:11]} 8. Bg5 {[%emt 0:00:47] White is slightly better.} O-O {[%emt 0:00:30]} 9. Bb3 {[%emt 0:01:00]} f6 {[%emt 0:10:14]} 10. Bh4 {[%emt 0:01:01] [#]} Kh8 $146 {[%emt 0:02:48]} ({Predecessor:} 10... Nbc6 11. Nd2 b5 12. N2f3 Bb7 13. e5 Rc8 14. Re1 Nxd4 15. Nxd4 Bd5 16. a4 fxe5 17. Bxd5 exd4 18. cxd4 {½-½ (42) Rabineau,C (2291)-Rodsmoen,M San Sebastian 2011}) 11. Re1 {[%emt 0:04:48]} b6 {[%emt 0:06:29]} (11... e5 $14) 12. e5 $16 {[%emt 0:12:39] White is much more active.} Nbc6 {[%emt 0:09:52]} 13. exf6 {[%emt 0:15:33]} (13. Bxf6 {keeps more tension.} Bxf6 14. exf6 Rxf6 15. Nxc6 Nxc6 16. Nd2) 13... Bxf6 {[%emt 0:00:18]} 14. Bxf6+ {[%emt 0:00:46]} Rxf6 {[%emt 0:00:07]} 15. Qd3 {[%emt 0:01:56]} Nxd4 {[%emt 0:03:12]} 16. Qxd4 {[%emt 0:02:20]} Nc6 {[%emt 0:01:50]} 17. Qh4 {[%emt 0:00:30]} Bb7 {[%emt 0:01:22]} 18. Nd2 {[%emt 0:03:44]} Qf8 {[%emt 0:08:16]} ({Black should play} 18... Rf8 19. Qg3 Na5) 19. Rad1 $1 {[%emt 0:12:03]} Rf4 {[%emt 0:07:45]} 20. Qg3 {[%emt 0:00:41]} Na5 {[%emt 0:10:46] Against Nc4} 21. Bc2 {[%emt 0:01:04] b4 is the strong threat.} Rd8 {[%emt 0:01:10]} (21... Rc8 $16 22. b4 Nc6) 22. Qe3 $1 $18 {[%emt 0:05:48]} Rb8 {[%emt 0:23:23]} (22... Nc4 $142 23. Nxc4 Rxc4) 23. b4 {[%emt 0:07:40]} ({Worse is} 23. Qxb6 Bxg2 24. Qxa5 Rg4 $11) 23... Nc6 {[%emt 0:02:38]} 24. Qxb6 {[%emt 0:09:02] Threatens to win with Ne4.} Nxb4 {[%emt 0:03:02]} 25. cxb4 {[%emt 0:01:19]} Bxg2 {[%emt 0:00:31]} 26. Qe3 {[%emt 0:11:18]} ({Weaker is} 26. Qxa6 Rg4 27. Qa3 Rbxb4 $11) 26... Rg4 {[%emt 0:00:25]} 27. h3 {[%emt 0:00:56]} ({White should try} 27. Nf1 {And now Rd4 would win.} Bc6+ 28. Ng3) 27... Bxh3+ $16 {[%emt 0:00:09]} 28. Kh2 {[%emt 0:00:10]} Rh4 {[%emt 0:01:48] Strongly threatening ...Qd6+.} 29. Kg3 $1 {[%emt 0:01:46]} Rbxb4 {[%emt 0:00:59]} 30. Ne4 {[%emt 0:01:22] The board is on fire.} (30. Nf3 {is a self mate.} Rbg4+ 31. Kh2 Qxf3 $3 {[%mdl 512]} 32. Qe5+ Kg8 33. Qb8+ Qf8) 30... Qf5 {[%emt 0:00:27] ( -> ...Qg4+)} 31. Qc3+ {[%emt 0:02:11]} e5 {[%emt 0:00:14][%csl Ge5,Gh4][%cal Rf5f4]} 32. Qc8+ {[%emt 0:00:21]} Kg7 {[%emt 0:00:07][%csl Ge5,Gh4][%cal Rf5f4] [#]} 33. Qxd7+ $1 {[%emt 0:00:07]} Qxd7 {[%emt 0:00:05]} 34. Rxd7+ {[%emt 0:00:05]} Bxd7 {[%emt 0:00:05]} 35. Kxh4 {[%emt 0:00:04]} Bf5 {[%emt 0:01:52]} 36. Kg3 {[%emt 0:00:26]} Rc4 {[%emt 0:00:19]} (36... h5 $14) 37. Bb1 {[%emt 0:01:00]} h5 {[%emt 0:00:41]} 38. f3 {[%emt 0:00:33]} g5 $2 {[%emt 0:00:57][%mdl 8192]} (38... Rb4 $16) 39. Nd6 $18 {[%emt 0:00:58]} h4+ {[%emt 0:00:42]} 40. Kf2 {[%emt 0:00:20] Weighted Error Value: White=0.08 (flawless) /Black=0.39} 1-0

[Event "13th KIIT Festival-A 2022"]
[Site "Bhubaneswar"]
[Date "2022.05.24"]
[Round "4.18"]
[White "Aditya P Melani"]
[Black "Sangma, Rahul"]
[Result "0-1"]
[ECO "A34"]
[WhiteElo "1855"]
[BlackElo "2232"]
[Annotator "TA"]
[PlyCount "88"]
[EventDate "2022.05.15"]
[EventType "swiss"]
[EventCountry "IND"]
[SourceTitle "playchess.com"]
[Source "ChessBase"]
[SourceQuality "1"]
[TimeControl "5400+30"]

{[%evp 10,88,17,12,12,6,29,0,63,52,75,66,64,66,80,41,52,27,31,14,13,0,0,16,29,0,0,-22,-21,-78,0,0,0,-20,-6,-21,-22,-29,-16,-17,28,-29,0,-11,-26,-27,-21,-49,-40,-87,-89,-96,-94,-94,-79,-83,-84,-91,-82,-91,-91,-87,-95,-201,-195,-185,-180,-252,-264,-263,-239,-270,-275,-298,-210,-389,-384,-1500,-1463,-1268,-1262]} 1. c4 {[%emt 0:00:03]} b6 {[%emt 0:06:51]} 2. Nc3 {[%emt 0:01:29]} Bb7 {[%emt 0:00:03]} 3. e4 {[%emt 0:00:28]} c5 {[%emt 0:02:12]} 4. g3 {[%emt 0:00:47]} g6 {[%emt 0:01:23]} 5. Bg2 {[%emt 0:00:30]} Bg7 {[%emt 0:00:02]} 6. Nge2 {[%emt 0:00:11]} Nc6 {[%emt 0:00:39] Against d4. A34: Symmetrical English: 2 Nc3, lines with ...d5.} 7. O-O {[%emt 0:04:42] 7.0-0 is better than 7.d3.} e6 {[%emt 0:03:10]} 8. d4 {[%emt 0:10:57]} cxd4 {[%emt 0:26:55]} (8... Nxd4 $11 9. Nxd4 Bxd4) 9. Nb5 $14 {[%emt 0:00:39]} d6 {[%emt 0:00:02]} 10. Nexd4 {[%emt 0:05:06]} Nxd4 {[%emt 0:00:02]} 11. Nxd4 {[%emt 0:00:02]} a6 {[%emt 0:00:11] [#] Inhibits Nb5.} 12. Re1 $146 {[%emt 0:13:11]} ({Predecessor:} 12. Be3 Ne7 13. Qd2 O-O 14. Bh6 Rc8 15. b3 Qc7 16. Rac1 Nc6 17. Bxg7 Kxg7 18. f4 Nxd4 19. Qxd4+ {½-½ (40) Steinhagen,B (2298)-Wuttke,H (2163) Germany 2014}) 12... Qc7 {[%emt 0:03:50]} 13. b3 {[%emt 0:02:12]} Nf6 {[%emt 0:04:28]} 14. a4 {[%emt 0:06:43]} O-O {[%emt 0:01:02]} 15. Ba3 {[%emt 0:01:30]} Rfd8 {[%emt 0:01:43]} 16. Rc1 {[%emt 0:00:30]} Nd7 {[%emt 0:03:45]} 17. Bb2 {[%emt 0:03:56]} (17. Nb5 $5 {[%cal Rb5c7]} Qc6 18. Nd4 $11 (18. Nxd6 $2 Nc5 $19)) 17... Rac8 {[%emt 0:00:49]} 18. Bc3 {[%emt 0:03:45]} Nc5 {[%emt 0:01:50]} 19. Qc2 {[%emt 0:06:11] [#]} (19. b4 $11 {keeps the balance.}) 19... Qb8 {[%emt 0:03:43]} (19... d5 $1 $17 {[%cal Rd5c4] Hoping for ...dxc4.} 20. exd5 exd5 21. cxd5 Bxd5) 20. b4 {[%emt 0:03:31]} Nd7 {[%emt 0:00:55]} 21. Qb3 {[%emt 0:00:53]} Ne5 {[%emt 0:10:47]} 22. Bb2 {[%emt 0:04:06]} Qc7 {[%emt 0:00:02]} 23. Bf1 {[%emt 0:04:11]} h5 {[%emt 0:01:31]} 24. f4 {[%emt 0:06:25]} Nc6 {[%emt 0:01:08]} 25. Nc2 {[%emt 0:00:57]} ({White should try} 25. Nf3) 25... a5 {[%emt 0:01:14]} 26. Bxg7 {[%emt 0:03:02]} Kxg7 {[%emt 0:00:02]} 27. b5 {[%emt 0:03:37]} Nb8 {[%emt 0:00:57]} 28. Qe3 {[%emt 0:03:12][%cal Of4f5]} Nd7 {[%emt 0:01:29]} 29. f5 {[%emt 0:02:40]} (29. Nd4 $15) 29... Qc5 $17 {[%emt 0:05:09]} 30. fxe6 {[%emt 0:01:36]} Qxe3+ {[%emt 0:00:19]} ({But not} 30... fxe6 $6 31. Nd4 Re8 32. Bh3 $11) 31. Rxe3 {[%emt 0:00:40]} fxe6 {[%emt 0:00:02]} 32. Nd4 {[%emt 0:00:25]} Nc5 {[%emt 0:00:04][%csl LRa4,LRe4]} 33. Bh3 {[%emt 0:00:49]} Re8 {[%emt 0:00:21]} 34. Rce1 {[%emt 0:04:47]} Rc7 {[%emt 0:04:37]} 35. e5 {[%emt 0:01:36]} d5 {[%emt 0:00:05]} 36. Rc3 {[%emt 0:02:39]} (36. Rc1 $17 {was necessary.}) 36... Nxa4 $19 {[%emt 0:01:51]} 37. Rc2 {[%emt 0:00:30]} Nc5 {[%emt 0:00:18]} ({Stronger than} 37... Rxc4 38. Nxe6+ Kh6 39. Rf2 $15) 38. cxd5 {[%emt 0:00:18]} (38. Bf1 $142) 38... Bxd5 {[%emt 0:00:05]} 39. Bg2 {[%emt 0:00:18]} Rd7 {[%emt 0:03:45] [#] aiming for ...Bxg2.} 40. Bxd5 {[%emt 0:00:21]} Rxd5 {[%emt 0:00:02]} 41. Nc6 {[%emt 0:00:08]} Nd3 {[%emt 0:06:01]} 42. Re4 {[%emt 0:00:51]} (42. Rd1 {was called for.}) 42... Rxb5 {[%emt 0:00:28]} 43. Rd4 $2 {[%emt 0:01:02]} (43. Rce2) 43... Rb1+ {[%emt 0:00:49]} 44. Kg2 {[%emt 0:00:07]} Ne1+ {[%emt 0:00:02] Weighted Error Value: White=0.44/Black=0.12 (very precise)} 0-1

[Event "13th KIIT Festival-A 2022"]
[Site "Bhubaneswar"]
[Date "2022.05.24"]
[Round "4.19"]
[White "Dhananjay S"]
[Black "Ghosh Samriddhaa"]
[Result "1-0"]
[ECO "C00"]
[WhiteElo "2218"]
[BlackElo "1844"]
[Annotator "TA"]
[PlyCount "105"]
[EventDate "2022.05.15"]
[EventType "swiss"]
[EventCountry "IND"]
[SourceTitle "playchess.com"]
[Source "ChessBase"]
[SourceQuality "1"]
[TimeControl "5400+30"]

{[%evp 16,105,1,-6,19,29,23,18,22,0,2,0,0,0,0,0,-5,-9,2,-11,27,20,29,28,36,28,33,10,14,6,68,9,25,0,7,0,22,13,29,-5,-5,-12,0,0,15,0,0,0,3,0,0,-3,0,0,0,-9,0,-6,0,-56,22,-8,7,0,0,0,0,0,0,-14,-6,-12,-10,-29,0,0,0,0,47,62,70,70,74,71,169,178,180,152,381,375,391,391]} 1. Nf3 {[%emt 0:00:04]} d5 {[%emt 0:05:32]} 2. g3 {[%emt 0:00:04]} Nf6 {[%emt 0:00:23]} 3. Bg2 {[%emt 0:00:04]} c5 {[%emt 0:01:09]} 4. O-O {[%emt 0:00:06]} Nc6 {[%emt 0:00:18]} 5. d3 {[%emt 0:00:21]} e6 {[%emt 0:01:33]} 6. Nbd2 {[%emt 0:01:18]} Be7 {[%emt 0:01:21]} 7. e4 {[%emt 0:00:06]} O-O {[%emt 0:00:27]} 8. Re1 {[%emt 0:00:02]} b5 {[%emt 0:00:16]} 9. a4 {[%emt 0:03:25]} bxa4 {[%emt 0:06:48] C00: French: Unusual White 2nd moves.} 10. Rxa4 {[%emt 0:00:39]} a5 {[%emt 0:02:48]} 11. exd5 {[%emt 0:01:37]} exd5 {[%emt 0:02:30] The position is equal.} 12. d4 {[%emt 0:00:28] [#]} h6 $146 {[%emt 0:10:10]} ({Predecessor:} 12... cxd4 13. Nb3 Bb4 14. Bd2 Bd7 15. Ra1 d3 16. c3 Bd6 17. Nbd4 Qb6 18. Nxc6 Bxc6 {0-1 (92) Pfreundt,J (2394)-Hilverda,A (2364) Werther 2018}) 13. Ne5 {[%emt 0:02:22]} Bb7 {[%emt 0:09:04]} (13... Nxd4 $2 14. Rxd4 $1 {[%mdl 512]} cxd4 15. Nc6 $18) 14. dxc5 {[%emt 0:02:04]} Nxe5 {[%emt 0:07:57]} 15. Rxe5 {[%emt 0:00:11]} Bxc5 {[%emt 0:00:31]} 16. Nb3 {[%emt 0:02:17]} Bd6 {[%emt 0:03:42]} 17. Re1 {[%emt 0:00:23]} Bb4 {[%emt 0:09:35]} (17... Bc6 $5 {[%cal Rc6a4]} 18. Ra1 Qc7 $11) 18. c3 {[%emt 0:00:45]} Bc6 {[%emt 0:04:02]} 19. Ra1 {[%emt 0:00:16]} Bd6 {[%emt 0:02:23]} 20. Nd4 {[%emt 0:00:30]} Bd7 {[%emt 0:00:35]} 21. Qd3 {[%emt 0:00:09]} Qc8 {[%emt 0:04:14]} 22. Be3 {[%emt 0:02:12]} Bh3 {[%emt 0:04:51]} (22... a4 $11) 23. Bh1 {[%emt 0:00:50] White is more active.} (23. Bxh3 $14 Qxh3 24. f3) 23... Re8 {[%emt 0:01:07]} 24. Ne2 {[%emt 0:07:16]} Bf5 {[%emt 0:01:45]} 25. Qd2 {[%emt 0:01:55]} Bc5 {[%emt 0:03:43]} 26. Nf4 {[%emt 0:03:56]} Be4 {[%emt 0:04:26]} 27. Bd4 {[%emt 0:03:27]} Bxd4 {[%emt 0:04:16]} 28. Qxd4 {[%emt 0:00:05]} Bxh1 {[%emt 0:02:39]} 29. Kxh1 {[%emt 0:00:05]} Re4 {[%emt 0:01:05]} 30. Qd2 {[%emt 0:04:03]} Qb7 {[%emt 0:02:12]} 31. Kg1 {[%emt 0:00:21]} Rb8 {[%emt 0:01:30]} 32. Reb1 {[%emt 0:01:38]} Qb5 {[%emt 0:00:48]} 33. f3 {[%emt 0:01:32]} Re7 {[%emt 0:01:40]} 34. Qd4 {[%emt 0:00:23]} Qb3 {[%emt 0:00:32]} 35. Qf2 {[%emt 0:04:40]} Qb5 {[%emt 0:00:51]} 36. Qd4 {[%emt 0:04:32]} Qb3 {[%emt 0:00:06]} 37. Nd3 {[%emt 0:03:36]} (37. Rxa5 $11 Qc2 38. Qd3 Qxd3 39. Nxd3) 37... Qc4 {[%emt 0:01:12]} (37... Re2 $15 38. Re1 (38. Rxa5 $2 Qc2 $19) 38... Rbe8 39. Rxe2 Rxe2) 38. Ra4 {[%emt 0:04:15]} (38. Rxa5 {seems wilder.} Qb3 39. Nb4 Re2 40. Ra3) 38... Qxd4+ {[%emt 0:00:46]} 39. cxd4 {[%emt 0:00:13]} Re3 {[%emt 0:00:26][%csl LRd3,LRf3]} 40. Ne5 {[%emt 0:03:40]} Re2 {[%emt 0:00:15]} 41. Rxa5 {[%emt 0:03:03]} Rc8 {[%emt 0:00:50]} 42. Nd3 {[%emt 0:09:49][%cal Be5d3,Bd3e1,Be1c2][%mdl 32]} Rcc2 {[%emt 0:00:09] ( -> ...Rg2+)} 43. Ne1 {[%emt 0:00:02] Inhibits Rg2+.} (43. Nf4 {is interesting.} Rf2 44. Rc1 Rcd2 45. Rd1) 43... Rcd2 {[%emt 0:00:52] aiming for ...Nh5.} 44. b4 {[%emt 0:01:39]} Rxd4 {[%emt 0:00:19]} (44... Rxh2 {is more complex.} 45. Ra3 Nd7 46. Ra8+ Kh7) 45. b5 {[%emt 0:00:07] Threatens to win with b6.} Nd7 {[%emt 0:00:23]} 46. Ra6 {[%emt 0:01:47]} Nc5 {[%emt 0:00:48]} (46... Rdd2 $11 {feels stronger.}) 47. Rc6 $1 $14 {[%emt 0:00:20]} Nd3 {[%emt 0:00:25]} 48. Nc2 {[%emt 0:04:06]} Rc4 {[%emt 0:00:24] [#] Strongly threatening ...Rxc6.} 49. Na3 $1 {[%emt 0:00:45]} Rc5 {[%emt 0:00:46]} (49... Ra4 $16 {is a better defense.} 50. Rc3 Nc5) 50. Rd1 $36 {[%emt 0:01:05][%mdl 2048] Keeping Black busy.} Re3 {[%emt 0:00:28]} 51. Nc2 {[%emt 0:06:40]} Re2 $2 {[%emt 0:00:30]} (51... Re6 $16 {might work better.}) 52. Nd4 {[%emt 0:00:08]} ({Worse is} 52. Rxd3 Rxc6 53. bxc6 Rxc2 $11) 52... Rb2 {[%emt 0:00:36][%cal Od3f2]} 53. Rxd3 {[%emt 0:21:39] Weighted Error Value: White=0.11 (very precise) /Black=0.21 (precise)} 1-0